Cogmind - Beta 10.2 @@@ ROGUE MODE // 2021.09.15 @ 21:21:57 Player: Storyteller Result: Destroyed by S-10 Pest with Light Assault Rifle Performance ------------- Evolutions (1) 500 Regions Visited (2) 400 Robots Destroyed (11) 55 Value Destroyed (376) 376 Prototype IDs (0) 0 Alien Tech Used (0) 0 Bonus (0) 0 TOTAL SCORE: 1331 Bonus ------- None Cogmind --------- Core Integrity 0/400 Matter 287/300 Energy 265/265 System Corruption 1% Temperature Cool (0) Movement Core (500) Ox9 Location -9/Materials Parts ------- > --- POWER (1) -------- Improved Ion Engine > --- PROPULSION (3) --- (None) > --- UTILITY (3) ------ Large Storage Unit Core Shielding > --- WEAPON (2) ------- Shotgun Katana > --- INVENTORY (10) --- Medium Storage Unit Medium Storage Unit Large Storage Unit Propulsion Shielding Light Armor Plating Peak State ------------ > --- POWER ------------ Light Nuclear Core > --- PROPULSION ------- Aluminum Leg Improved Aluminum Leg > --- UTILITY ---------- Large Storage Unit Core Shielding > --- WEAPON ----------- Medium Laser Katana > --- INVENTORY -------- Improved Ion Engine Small Storage Unit Medium Storage Unit Medium Storage Unit Large Storage Unit Large Matter Pod Propulsion Shielding Light Armor Plating Light Armor Plating [Rating: 13] Favorites ----------- Power Ion Engine Engine Ion Engine Power Core Light Nuclear Core Propulsion Light Treads Treads Light Treads Leg Aluminum Leg Utility Large Storage Unit Storage Large Storage Unit Protection Core Shielding Weapon Light Assault Rifle Energy Gun Medium Laser Ballistic Gun Light Assault Rifle Slashing Weapon Katana Build | -11 -10 -9 ------- Run | Scr Mat Mat Slots Evolved 2 | . . 2 Power . | . . . Propulsion 1 | . . 1 Utility 1 | . . 1 Weapon . | . . . Parts Attached 24 | 6 7 11 Power 4 | 1 1 2 Engine 3 | 1 1 1 Core 1 | . . 1 Reactor . | . . . Propulsion 6 | 2 . 4 Treads 3 | 2 . 1 Leg 3 | . . 3 Wheel . | . . . Hover . | . . . Flight . | . . . Utility 9 | 1 6 2 Device . | . . . Storage 6 | 1 5 . Processor . | . . . Hackware . | . . . Protection 3 | . 1 2 Artifact . | . . . Weapon 5 | 2 . 3 Energy Gun 1 | . . 1 Energy Cannon . | . . . Ballistic Gun 3 | 2 . 1 Ballistic Cannon . | . . . Launcher . | . . . Special Weapon . | . . . Impact Weapon . | . . . Slashing Weapon 1 | . . 1 Piercing Weapon . | . . . Special Melee Weapon . | . . . Unidentified Prototypes . | . . . Parts Lost 12 | . 1 11 Power 3 | . 1 2 Propulsion 5 | . . 5 Utility 1 | . . 1 Weapon 3 | . . 3 Highest Loss Streak 6 | . 1 6 Average Slot Usage (%) 87 | . 97 75 Engine 8 | . 12 2 Core 2 | . . 6 Treads 17 | . 28 4 Leg 7 | . . 16 Storage 20 | . 25 13 Protection 6 | . 2 12 Energy Gun 3 | . . 7 Ballistic Gun 17 | . 28 3 Slashing Weapon 3 | . . 7 Naked Turns . | . . . Heaviest Build 40 | 10 40 40 Greatest Support 40 | 40 40 40 Greatest Overweight (x) 9 | . . 9 Average Overweight (x) . | . . . Largest Inventory Capacity 16 | 6 16 16 Average Capacity 9 | 5 8 11 Most Carried 11 | 6 11 10 Average Carried 6 | 3 6 7 Final Capacity 16 | 6 16 10 Final Carried 11 | 6 11 5 Class Distribution -------------------- 79% | Mutant 20% | Scavenger-Mutant Dominant Class ---------------- Mutant | -10/Materials Scavenger-Mutant | -9/Materials Resources | -11 -10 -9 ----------- Run | Scr Mat Mat Matter Collected 477 | 125 226 126 Remotely . | . . . Salvage Created 450 | . 226 224 Parts 27 | . 14 13 Haulers Intercepted . | . . . Recyclers Shooed . | . . . Parts Field Recycled . | . . . Retrieved Matter . | . . . Parts Self-Destructed . | . . . Prevented . | . . . Kills | -11 -10 -9 ------- Run | Scr Mat Mat Combat Hostiles Destroyed 11 | . 5 6 Melee 2 | . . 2 Guns 9 | . 5 4 Classes Destroyed 4 | . 1 3 Swarmer 2 | . . 2 Grunt 7 | . 5 2 Duelist 1 | . . 1 Sentry 1 | . . 1 Best Kill Streak 3 | . 3 2 Combat Bots Only 3 | . 3 2 Max Kills in Single Turn 1 | . 1 1 Gunslinging . | . . . Exploded . | . . . Melee 1 | . . 1 Uniques/NPCs Destroyed . | . . . Combat | -11 -10 -9 -------- Run | Scr Mat Mat Damage Taken 1720 | . 394 1326 Core 421 | . 18 403 Absorbed by Shields . | . . . Core Remaining (%) 96 | 100 92 . Volleys Fired 55 | . 26 29 Largest 2 | . 2 2 Hottest 50 | . 40 50 Shots Fired 82 | . 52 30 Gun 82 | . 52 30 Cannon . | . . . Launcher . | . . . Special . | . . . Kinetic 72 | . 52 20 Thermal 10 | . . 10 Explosive . | . . . Electromagnetic . | . . . Robot Hit Streak 26 | . 17 26 Robot Miss Streak 2 | . 2 2 Penetration Max . | . . . Secondary Targets 1 | . 1 . Max Gunslinging Chain 1 | . 1 . Shots Hit Robots 80 | . 45 35 Core Hits 28 | . 17 11 Critical Hits . | . . . Critical Kills . | . . . Critical Parts Destroyed . | . . . Melee Attacks 17 | . . 17 Impact . | . . . Slashing 17 | . . 17 Piercing . | . . . Sneak Attacks . | . . . Combat Hostiles . | . . . Follow-up Attacks . | . . . Damage Inflicted 1026 | . 479 547 Guns 786 | . 479 307 Cannons . | . . . Explosions . | . . . Melee 228 | . . 228 Ramming 12 | . . 12 Kinetic 659 | . 479 180 Thermal 127 | . . 127 Explosive . | . . . Electromagnetic . | . . . Impact . | . . . Slashing 228 | . . 228 Piercing . | . . . Highest Corruption 1 | . . 1 Average Corruption 1 | . . 1 Corruption Purged . | . . . Effects 3 | . . 3 Data Loss (minor) 2 | . . 2 Weapon Failures 1 | . . 1 Overload Shots . | . . . Overflow Damage 2 | . . 2 Projectiles . | . . . Explosions . | . . . Melee 2 | . . 2 Knockbacks . | . . . Impact . | . . . Kinetic . | . . . Secondary . | . . . Self-Inflicted Damage . | . . . Shots . | . . . Rammed 8 | . . 8 Targets Rammed 8 | . . 8 Kicked . | . . . Crushed . | . . . Highest Temperature 102 | . 18 102 Average Temperature 26 | . 7 41 Received Heat Transfer 450 | . 225 225 Siege Activations . | . . . Robots Corrupted . | . . . Combat Hostiles . | . . . Parts Fried . | . . . Impact Corruptions . | . . . Robots Melted . | . . . Combat Hostiles . | . . . Parts Melted 3 | . . 3 Heat Transferred 370 | . . 370 Parts Sabotaged . | . . . Parts Stolen . | . . . Parts Stripped . | . . . Power Chain Reactions . | . . . Missiles Intercepted . | . . . Alert | -11 -10 -9 ------- Run | Scr Mat Mat Peak Influence 180 | . 180 95 Initial . | . . . Average 64 | . 92 47 Maximum Alert Level . | . . . Low Security (%) 100 | 100 100 100 Level 1 . | . . . Level 2 . | . . . Level 3 . | . . . Level 4 . | . . . Level 5 . | . . . High Security . | . . . Max Security . | . . . Squads Dispatched 1 | . 1 . Investigation . | . . . Extermination . | . . . Reinforcement 1 | . 1 . Assault . | . . . Garrison . | . . . Intercept . | . . . Construction Impeded . | . . . Haulers Reinforced . | . . . Stealth | -11 -10 -9 --------- Run | Scr Mat Mat Distress Signals . | . . . Communications Jammed . | . . . Distress Signals . | . . . Times Spotted 23 | . 13 10 Peak Tracking Total 5 | . 5 4 Tactical Retreats . | . . . Traps | -11 -10 -9 ------- Run | Scr Mat Mat Traps Triggered . | . . . Indirectly . | . . . Trap Hack Attempts . | . . . Triggered . | . . . Disarmed . | . . . Reprogrammed . | . . . Reused . | . . . Traps Extracted . | . . . Installed . | . . . Triggered . | . . . Machines | -11 -10 -9 ---------- Run | Scr Mat Mat Machines Disabled . | . . . Max in Single Turn . | . . . Machines Sabotaged . | . . . Garrisons Compromised . | . . . Overloaded Fab Kills . | . . . Fab Network Shutdowns . | . . . Hacking | -11 -10 -9 --------- Run | Scr Mat Mat Machines Accessed 2 | . 2 . Terminals 1 | . 1 . Fabricators . | . . . Repair Stations . | . . . Recycling Units 1 | . 1 . Scanalyzers . | . . . Garrison Access . | . . . Total Hacks 4 | . 4 . Successful 1 | . 1 . Failed 3 | . 3 . Catastrophic 1 | . 1 . Database Lockouts . | . . . Manual . | . . . Terminals 3 | . 3 . Fabricators . | . . . Repair Stations . | . . . Recycling Units 1 | . 1 . Scanalyzers . | . . . Garrison Access . | . . . Terminal Hacks . | . . . Fabricator Hacks . | . . . Repair Station Hacks . | . . . Recycling Unit Hacks 1 | . 1 . Report Inventory 1 | . 1 . Scanalyzer . | . . . Garrison Access Hacks . | . . . Unauthorized Hacks . | . . . Terminals . | . . . Fabricators . | . . . Repair Stations . | . . . Recycling Units . | . . . Scanalyzers . | . . . Garrison Access . | . . . Data Cores Recovered . | . . . Used . | . . . Hacking Detections 1 | . 1 . Full Trace Events . | . . . Feedback Events . | . . . Feedback Blocked . | . . . Robot Schematics Acquired . | . . . Robots Built . | . . . Matter . | . . . Time . | . . . Total Robot Build Rating . | . . . Part Schematics Acquired . | . . . Parts Built . | . . . Matter . | . . . Time . | . . . Total Part Build Rating . | . . . Parts Repaired . | . . . Time . | . . . Parts Recycled . | . . . Recycled Matter . | . . . Retrieved Matter . | . . . Retrieved Components . | . . . Parts Scanalyzed . | . . . Part Schematics Acquired . | . . . Parts Damaged . | . . . Bothacking | -11 -10 -9 ------------ Run | Scr Mat Mat Used RIF Installer . | . . . Robots Hacked . | . . . Non-combat . | . . . Combat . | . . . Robot Hacks Applied . | . . . Relay Couplers Released . | . . . Robots Rewired . | . . . Allies Hacked . | . . . Hacks Repelled . | . . . Allies | -11 -10 -9 -------- Run | Scr Mat Mat Total Allies . | . . . Largest Group . | . . . Highest-Rated Group . | . . . Highest-Rated Ally . | . . . Total Orders . | . . . Ally Attacks . | . . . Total Damage . | . . . Kills . | . . . Allies Corrupted . | . . . Allies Melted . | . . . Intel | -11 -10 -9 ------- Run | Scr Mat Mat Robot Analysis Total . | . . . Derelict Logs Recovered . | . . . Drone Launches . | . . . Drone Recoveries . | . . . Exploration | -11 -10 -9 ------------- Run | Scr Mat Mat Turns Passed 950 | 112 476 362 Spaces Moved 431 | 62 234 135 Core 5 | 3 . 2 Treads 314 | 59 234 21 Legs 112 | . . 112 Wheels . | . . . Hover . | . . . Flight . | . . . Fastest Speed 50 | 50 160 120 Average Speed 158 | 154 160 157 Slowest Speed 500 | 160 160 500 Overloaded Moves . | . . . Propulsion Burnouts . | . . . Robots Hopped . | . . . Cave-ins Triggered . | . . . Exploration Rate (%) 16 | 5 32 11 Regions Visited 2 Branch Regions . Pre-discovered Areas . | . . . Known Exits Taken . | . . . Unknown Exits Taken 2 | 1 1 . Scrap Searched . | . . . Spaces Dug . | . . . Terrain Destroyed . | . . . Melee . | . . . Projectile . | . . . AOE . | . . . Terrain Rammed . | . . . Walls Destroyed . | . . . Machines Disabled . | . . . Actions | -11 -10 -9 --------- Run | Scr Mat Mat Total 582 | 75 290 217 Wait 21 | 2 7 12 Move 429 | 61 233 135 Hop . | . . . Pick Up 18 | 6 10 2 Fast Attach 14 | 6 4 4 Attach 9 | . 2 7 Detach 3 | . 2 1 Swap 1 | . 1 . Drop 7 | . 5 2 Fire 55 | . 26 29 Melee 17 | . . 17 Ram 3 | . . 3 Kick . | . . . Crush 5 | . . 5 Escape Stasis . | . . . Rewire . | . . . Trap . | . . . Miscellaneous . | . . . Route ------- -11/Scrapyard -10/Materials -9/Materials History --------- Turn | Location | Event 38 | -11/Scrapyard | Discovered new exit (range 15) 113 | -11/Scrapyard | Entered Materials 318 | -10/Materials | Build established: Mutant 436 | -10/Materials | Discovered new exit (range 10) 589 | -10/Materials | Entered another Materials area 589 | -9/Materials | Evolved 2 slots: Propulsion x1, Utility x1 677 | -9/Materials | Core integrity fell below 50% 697 | -9/Materials | Lost 6 parts (1p3n2w) 933 | -9/Materials | Core integrity fell below 20% 951 | -9/Materials | Destroyed by S-10 Pest with Light Assault Rifle Last Messages --------------- 00878_ System corrupted: Component data lost. 00881_ Destroyed Ion Engine. 00886_ G-34 Mercenary destroyed. 00889_ Acquired 17 matter. 00903_ C-30 ARC bursts open, deploying its payload. 00903_ S-10 Pest unfolds itself. 00904_ Lgt. Nuclear Core destroyed. 00906_ S-10 Pest destroyed. 00910_ R-06 Scavenger collects Flight Unit. 00919_ K-01 Serf collects debris. 00923_ Med. Laser destroyed. 00926_ K-01 Serf collects debris. 00931_ Lgt. Armor Plating destroyed. 00932_ K-01 Serf collects debris. 00937_ Imp. Aluminum Leg destroyed. 00940_ K-01 Serf collects debris. 00940_ Aluminum Leg destroyed. 00943_ S-10 Pest destroyed. 00944_ K-01 Serf collects debris. [Achievement: Back For More] Map ----- +----------------------------------------------------+ | ?????????????????????????????????????????????????? | | ?????????????????????????????????????????????????? | | ?????????????????????????????????????????????????? | | ?????????????????????????????????????????????????? | | ?????????????????????????????????????????????????? | | ?????????????????????????????????????????????????? | | ?????????????????????????????????????????????????? | | ?????????????????????????????????????????????????? | | ?????????????????????????????????????????????????? | | ?????????????????????????????????????????????????? | | ??????????????????????????????????#####??????????? | | ?????????????????????????????????? ??????????? | | ?????????????????????????????????? ??????????? | | ?????????????????????????????????? ??????????? | | ??????????????????????????????????# #??????????? | | ???????????? ????????????????????# #??????????? | | ???????????# ?????#######???????# #??????????? | | ??????????? = ##### #???????# #??????????? | | ??????????? k #???????# #??????????? | | ??????????# #???????# #??????????? | | ????????????? Y T #???????# #??????????? | | ????????????????# =%=#???????# #??????????? | | ????????????????# #???????# #??????????? | | ????????????????# |[ #???????# #??????????? | | ????????????????#^ [[ #???????# %#??#######?? | | ????????????????# [ @######### #### #?? | | ????????????????# = #?? | | ????????????????# *%[ #?? | | ????????????????# s =* #?? | | ????????????????# ################# #?? | | ??????????????? + a #???????????????## #### | | ??????????????" # #????????????????# # | | ?????????????" ?###+######?????????######## # | | ????????????? ?????????????????????# + + "" | | ???????????????????????????????????# # # "" | | ???????????????????????????????????# # # "" | | ???????????????????????????????????# # # | | ???????????????????????????????????# !! # #### | | ???????????????????????????????????# !! # #??? | | ???????????????????????????????????######## #??? | | ??????????????????????????????????????????# #??? | | ??????????????????????????????????????????# #??? | | ??????????????????????????????????????????# #??? | | ???????????????????????????????????????#### #### | | ??????????????????????????????????????# # | | ???????????????????????????????????????# | | ???????????????????????????????????????# # | | ???????????????????????????????????????########### | | ?????????????????????????????????????????????????? | | ?????????????????????????????????????????????????? | +----------------------------------------------------+ Best States ------------- Heat Dissipation 28 Energy Generation 14 Energy Capacity 265 Matter Stores 300 Matter Capacity 450 Sight Range 16 Terrain Scan Density 10 Armor Coverage 150 Core Shielding 20 Propulsion Shielding 33 Evasion (%) 40 Recoil Reduction 2 Item Schematics ----------------- None Robot Schematics ------------------ None Fabricated ------------ Nothing Alien Tech Used ----------------- None Achievements -------------- Back For More Challenges ------------ None Game ------ Seed NullProtonNegator Manual? 0 Play Time 00:12:21 Cumulative 24.7 hours Start 2021.09.15 @ 21:12:54 End 2021.09.15 @ 21:21:57 Sessions 1 Manual Loads 0 Difficulty Rogue Special Mode None Game No. 50 Rogue 50 Adventurer 0 Explorer 0 Win Type - Total 0 Types 0/0/0/0/0/0/0/0/0 Lore% 23 Gallery% 20 Achievement% 16 Wizard Run 0 Options --------- ASCII 1 Keyboard 1 Movement Vi Keybinds 0 Fullscreen 1 Font 18/Terminus Map View 76x50 Tactical HUD 1 Map Filters NONE Filters NONE Steam 1 RUN: a4794046-4d37-444e-95ee-3db98cf39de1